bitfinex/quotes_SOLUSD_20260217
["timestamp","ask_amount","ask_price","bid_price","bid_amount"]
[1771358558882,11.75378177,85.079,85.0,19.08098447]
[1771358558883,7.10739222,85.1,85.061,0.5]
[1771358559061,7.10739222,85.11,85.071,0.5]
[1771358559675,48.22098318,85.13,85.091,0.5]
[1771358563277,11.74674027,85.13,85.101,0.5]
[1771358563478,18.85413249,85.13,85.1,7.10739222]
[1771358563885,18.85413249,85.13,85.101,0.5]
[1771358564562,11.74674027,85.13,85.101,0.5]
[1771358565275,7.10739222,85.13,85.101,0.5]
[1771358567887,41.11407392,85.129,85.101,0.5]
[1771358569388,11.74687826,85.129,85.101,0.5]
[1771358573384,41.10953473,85.139,85.101,0.5]
[1771358574169,41.10953473,85.139,85.076,0.5]
[1771358574170,7.11075846,85.11,85.076,0.5]
[1771358576280,7.11075846,85.1,85.076,0.5]
[1771358577694,41.12373543,85.109,85.076,0.5]
[1771358578985,11.74963869,85.109,85.08,7.11075846]
[1771358579195,11.74963869,85.109,85.081,0.5]
[1771358580176,46.98701311,85.13,85.091,0.5]
[1771358580177,11.74839634,85.118,85.091,0.5]
[1771358580899,7.11075846,85.15,85.111,0.5]
[1771358581081,41.10441696,85.149,85.112,0.5]
[1771358582378,11.74411913,85.149,85.12,7.11075846]
[1771358582699,48.20021607,85.18,85.141,0.5]
[1771358584494,48.20021607,85.18,85.142,0.5]
[1771358588475,48.20021607,85.18,85.118,17.14]
[1771358588476,7.11075846,85.16,85.118,17.14]
[1771358588684,7.11075846,85.14,85.11,0.5]
[1771358590004,7.11075846,85.15,85.111,0.5]
[1771358590189,11.74411913,85.149,85.111,0.5]
[1771358591503,41.10441696,85.149,85.111,0.5]
[1771358593592,7.11075846,85.14,85.111,0.5]
[1771358593792,7.11075846,85.12,85.093,0.5]
[1771358594486,7.11075846,85.13,85.093,0.5]
[1771358594889,7.11075846,85.12,85.088,17.14]
[1771358595095,7.11075846,85.12,85.089,0.5]
[1771358595290,7.11075846,85.13,85.101,0.5]
[1771358595607,11.74687826,85.129,85.101,0.5]
[1771358596102,41.11407392,85.129,85.101,0.5]
[1771358596708,7.11075846,85.11,85.081,0.5]
[1771358597717,41.12373543,85.109,85.081,0.5]
[1771358598387,7.11075846,85.1,85.072,0.5]
[1771358598795,7.11075846,85.09,85.064,17.14]
[1771358599110,7.11075846,85.08,85.051,0.5]
[1771358599716,11.75378177,85.079,85.051,0.5]
[1771358600314,11.75170987,85.094,85.061,0.5]
[1771358600817,29.37524666,85.106,85.071,0.5]
[1771358601003,11.75019094,85.105,85.071,0.5]
[1771358601205,7.11075846,85.1,85.071,0.5]
[1771358602318,18.86177347,85.1,85.073,0.5]
[1771358602520,11.75101501,85.1,85.073,0.5]
[1771358602897,18.86177347,85.1,85.073,0.5]
[1771358603313,11.75101501,85.1,85.073,0.5]
[1771358604102,11.74963869,85.109,85.081,0.5]
[1771358604827,11.74853437,85.117,85.091,0.5]
[1771358605623,41.11987029,85.117,85.091,0.5]
[1771358606223,11.74963869,85.109,85.081,0.5]
[1771358606722,11.74963869,85.109,85.082,11.75336733]
[1771358606923,11.74963869,85.109,85.083,0.5]
[1771358608723,11.74963869,85.109,85.073,17.64]
[1771358608724,7.11075846,85.1,85.073,17.64]
[1771358608900,41.12373543,85.109,85.074,0.5]
[1771358610318,7.11075846,85.1,85.074,0.5]
[1771358610516,7.11075846,85.1,85.064,11.75572203]
[1771358610517,41.13340148,85.089,85.061,0.5]
[1771358610909,41.13340148,85.089,85.051,0.5]
[1771358610910,7.11075846,85.08,85.051,0.5]
[1771358611126,41.13340148,85.089,85.051,0.5]
[1771358614128,41.13340148,85.089,85.052,0.5]
[1771358614826,41.13340148,85.089,85.053,0.5]
[1771358616731,2.39193964,85.08,85.053,0.5]
[1771358617111,11.75378177,85.079,85.053,0.5]
[1771358618033,11.75253854,85.088,85.053,0.5]
[1771358618215,41.13388491,85.088,85.053,0.5]
[1771358619528,41.13388491,85.088,85.055,0.5]
[1771358620617,41.13388491,85.088,85.061,0.5]
[1771358621631,41.13388491,85.088,85.05,2.39193964]
[1771358621831,41.13388491,85.088,85.051,0.5]
[1771358621832,2.39193964,85.08,85.051,0.5]
[1771358623534,29.38134637,85.088,85.051,0.5]
[1771358623737,2.39193964,85.08,85.041,0.5]
[1771358624216,2.39193964,85.07,85.041,0.5]
[1771358624934,2.39193964,85.08,85.042,0.5]
[1771358625113,2.39193964,85.09,85.051,0.5]
[1771358626019,41.13340148,85.089,85.051,0.5]
[1771358627533,41.13340148,85.089,85.053,0.5]
[1771358628443,41.13340148,85.089,85.032,6.8]
[1771358628444,2.39184739,85.08,85.03,0.7]
[1771358628650,2.39184739,85.06,85.03,0.7]
[1771358628822,2.39184739,85.06,85.031,0.5]
[1771358629122,41.13340148,85.089,85.051,0.5]
[1771358629323,41.13340148,85.089,85.061,0.5]
[1771358629938,2.39184739,85.08,85.032,17.12]
[1771358630147,2.39184739,85.08,84.979,47.07029501]
[1771358630148,0.49777898,85.059,85.02,2.39184739]
[1771358630343,0.49777898,85.039,85.0,2.39184739]
[1771358630817,2.39184739,85.03,85.0,2.39184739]
[1771358631240,0.49777898,85.029,84.995,11.76527853]
[1771358631743,0.49777898,85.029,85.0,2.39184739]
[1771358631947,11.76083172,85.028,85.004,0.49858644]
[1771358632446,0.49777898,85.027,84.994,0.49858644]
[1771358632644,7.12793907,85.02,84.994,0.49858644]
[1771358633241,12.07719073,85.028,85.001,0.49659982]
[1771358633421,11.76083172,85.028,85.001,0.49659982]
[1771358634328,0.31897665,85.027,84.991,0.49659982]
[1771358634530,11.76083172,85.028,84.991,0.49659982]
[1771358634531,0.31897665,85.019,84.991,0.49659982]
[1771358634962,0.31897665,84.999,84.98,1e-08]
[1771358635249,14.25587814,85.0,84.912,6.13549166]
[1771358635250,0.31875868,84.989,84.962,0.49659982]
[1771358635421,11.76083172,85.028,84.962,0.49659982]
[1771358635422,7.44669775,85.0,84.962,0.49659982]
[1771358635624,0.31875868,85.007,84.971,0.49659982]
[1771358636148,11.76484429,84.999,84.971,0.49659982]
[1771358636446,11.76484429,84.999,84.971,0.38659982]
[1771358637341,41.60528526,84.999,84.971,0.38659982]
[1771358639026,41.17695502,84.999,84.971,0.38659982]
[1771358639835,11.76484429,84.999,84.971,0.38659982]
[1771358640658,11.76426229,85.004,84.973,0.49659982]
[1771358641428,7.12793907,85.0,84.973,0.49659982]
[1771358641828,12.19176476,85.004,84.973,0.49659982]
[1771358642835,0.42730144,85.014,84.99,0.49659982]
[1771358643335,11.76156387,85.023,84.991,0.49659982]
[1771358643536,11.76156387,85.023,85.001,0.49659982]
[1771358643748,0.42710271,85.022,84.994,0.49659982]
[1771358643930,11.76156387,85.023,84.994,0.49659982]
[1771358644835,29.39422803,85.051,85.013,0.49659982]
[1771358645038,29.39422803,85.051,85.021,0.49659982]
[1771358646031,0.42671209,85.055,85.021,0.49659982]
[1771358646748,0.42671209,85.055,85.03,7.12793907]
[1771358646954,11.75723657,85.054,85.031,0.49659982]
[1771358647154,0.42633038,85.053,85.024,0.49659982]
[1771358647650,11.75723657,85.054,84.949,47.08681985]
[1771358647651,0.42633038,85.029,84.99,7.12793907]
[1771358647950,7.12793907,85.01,84.987,0.49659982]
[1771358648142,0.42614281,85.009,84.971,0.49659982]
[1771358648537,0.42614281,84.999,84.962,0.49659982]
[1771358648737,7.12793907,84.99,84.962,0.49659982]
[1771358649151,11.76622857,84.989,84.962,0.49659982]
[1771358649482,12.19218597,84.989,84.962,0.49659982]
[1771358650452,11.76622857,84.989,84.964,0.49659982]
[1771358651349,11.76525954,84.996,84.966,0.49659982]
[1771358651556,12.19085247,84.996,84.966,0.49659982]
[1771358652131,11.76525954,84.996,84.966,0.49659982]
[1771358652350,16.54,85.01,84.966,0.49659982]
[1771358652554,7.12793907,85.0,84.971,0.49659982]
[1771358652884,7.12793907,84.98,84.96,0.2]
[1771358653037,0.42541383,84.989,84.96,0.2]
[1771358653437,0.42523679,84.987,84.96,0.2]
[1771358653757,7.12793907,84.98,84.96,0.2]
[1771358654492,0.42523679,84.987,84.96,0.2]
[1771358654757,41.18228455,84.988,84.961,0.47891105]
[1771358655454,0.42488878,84.999,84.961,0.47891105]
[1771358655661,11.7649827,84.998,84.971,0.47891105]
[1771358655852,7.12793907,85.01,84.971,0.47891105]
[1771358656369,7.55248779,85.01,84.971,0.47891105]
[1771358657443,7.55248779,85.01,84.96,0.2]
[1771358657444,0.42438161,85.043,85.001,0.47891105]
[1771358657649,0.42438161,85.054,85.02,7.12793907]
[1771358657842,0.42438161,85.039,85.0,7.12793907]
[1771358658436,0.42438161,85.039,85.0,7.60685012]
[1771358658639,0.42438161,85.039,85.001,0.47891105]
[1771358659164,41.14984421,85.055,85.021,0.47891105]
[1771358659360,0.42405313,85.048,85.012,0.47891105]
[1771358659861,0.42405313,85.048,85.014,0.47891105]
[1771358660063,7.12793907,85.03,84.996,0.47891105]
[1771358660253,7.12793907,85.03,84.944,47.08976548]
[1771358660254,0.42389172,85.019,84.981,0.47891105]
[1771358660455,7.12793907,85.02,84.99,7.60685012]
[1771358660861,7.12793907,85.02,84.991,0.47891105]
[1771358661767,0.42373216,85.018,84.991,0.47891105]
[1771358662351,0.42373216,85.018,84.991,12.24479493]
[1771358662550,0.42357443,85.035,85.001,0.47891105]
[1771358662758,11.76000188,85.034,85.001,0.47891105]
[1771358662946,12.1834204,85.034,85.001,0.47891105]
[1771358663149,0.42341852,85.033,85.001,0.47891105]
[1771358663463,0.42341852,85.083,85.021,0.47891105]
[1771358663773,0.42341852,85.057,85.02,7.12793907]
[1771358664465,0.42341852,85.057,85.021,12.24071107]
[1771358664876,0.42341852,85.057,85.021,0.47891105]
[1771358666049,0.42296143,85.055,85.022,11.76166168]
[1771358666248,0.42296143,85.055,85.021,0.47891105]
[1771358666467,0.42296143,85.039,85.0,7.12793907]
[1771358666648,0.42296143,85.029,84.995,0.47891105]
[1771358666847,7.12793907,85.02,84.995,0.47891105]
[1771358667056,0.42296143,85.029,84.995,0.47891105]
[1771358667463,0.42296143,85.029,84.978,17.02]
[1771358667464,0.42296143,85.029,85.0,7.60685012]
[1771358667664,0.42296143,85.029,84.939,35.32]
[1771358667665,0.42281256,85.009,84.973,0.47891105]
[1771358668478,0.42266539,84.999,84.97,7.12793907]
[1771358669174,0.42266539,84.999,84.97,7.60685012]
[1771358669483,0.42266539,84.999,84.971,0.47891105]
[1771358670471,0.42266539,84.999,84.97,7.12793907]
[1771358670472,41.17259552,85.008,84.972,0.47891105]
[1771358670775,7.12793907,85.0,84.972,0.47891105]
[1771358672876,11.76346033,85.009,84.981,0.47891105]
[1771358673456,0.42195454,85.008,84.972,17.0]
[1771358673655,0.42195454,84.999,84.971,0.47891105]
[1771358673963,7.12793907,85.0,84.971,0.47891105]
[1771358674969,11.76484429,84.999,84.973,0.47891105]
[1771358676257,11.76484429,84.999,84.963,0.47891105]
[1771358676258,7.12793907,84.99,84.963,0.47891105]
[1771358676671,0.42154732,84.998,84.963,12.24874026]
[1771358676873,11.76512112,84.997,84.964,0.47891105]
[1771358677263,11.76512112,84.997,84.966,0.47891105]
[1771358677671,11.76512112,84.997,84.971,0.47891105]
[1771358678485,58.80397947,85.029,84.965,11.76955216]
[1771358678486,11.76207671,85.019,84.991,0.47891105]
[1771358678858,41.16248732,85.029,85.001,0.47891105]
[1771358680165,0.42102586,85.009,84.977,0.47891105]
[1771358680371,7.12793907,85.0,84.977,0.47891105]
[1771358680764,0.42102586,85.009,84.977,0.47891105]
[1771358681272,11.76359872,85.008,84.977,0.47891105]
[1771358682486,7.12793907,85.0,84.977,0.47891105]
[1771358682688,11.76359872,85.008,84.971,0.47891105]
[1771358682983,11.76359872,85.008,84.981,0.47891105]
[1771358684274,11.76124669,85.025,84.991,0.47891105]
[1771358684873,11.76058978,85.03,85.001,0.48567276]
[1771358685190,18.88852885,85.03,85.001,0.48567276]
[1771358685385,11.76000188,85.034,85.001,0.48567276]
[1771358685589,11.75773598,85.051,85.021,0.48567276]
[1771358685777,0.42028749,85.069,85.031,0.48567276]
[1771358685980,0.42016933,85.059,85.031,0.48567276]
[1771358686180,7.12793907,85.05,85.021,0.48567276]
[1771358686378,7.12793907,85.04,85.011,0.48567276]
[1771358687466,0.42005253,85.039,85.011,0.48567276]
[1771358687673,0.42005253,85.039,85.001,0.48567276]
[1771358688689,12.17938577,85.038,85.001,0.48567276]
[1771358688891,7.12793907,85.03,85.001,0.48567276]
[1771358689071,12.17938577,85.038,85.001,0.48567276]
[1771358689268,12.17938577,85.038,85.011,0.48567276]
[1771358689269,11.75944871,85.038,85.011,0.48567276]
[1771358690199,41.1580705,85.038,85.011,0.48567276]
[1771358690689,0.4197101,85.027,84.99,7.12674593]
[1771358690882,7.12674593,85.02,84.991,0.48567276]
[1771358691079,29.39809386,85.04,84.992,0.48567276]
[1771358691282,36.52483979,85.04,85.011,0.48567276]
[1771358691891,29.39809386,85.04,85.011,0.48567276]
[1771358692071,11.75875733,85.043,85.021,0.48567276]
[1771358692598,0.48665383,85.039,85.0,7.12674593]
[1771358694516,0.46879598,85.037,85.001,0.4903944]
[1771358695179,0.46879598,85.037,85.01,7.12674593]
[1771358695381,0.46879598,85.037,85.003,0.4903944]
[1771358696397,11.75944871,85.038,85.003,0.4903944]
[1771358696596,11.7584808,85.045,85.021,0.4903944]
[1771358697988,29.39388425,85.052,85.021,0.4903944]
[1771358698802,29.86268023,85.052,85.021,0.4903944]
[1771358699310,11.75778953,85.05,85.021,0.4903944]
[1771358700005,12.22658551,85.05,85.021,0.4903944]
[1771358700204,12.22658551,85.05,85.003,16.98]
[1771358700205,11.75516345,85.069,85.041,0.4903944]
[1771358700393,41.14307208,85.069,85.041,0.4903944]
[1771358701011,41.14307208,85.069,84.981,0.4903944]
[1771358701012,0.46879598,85.046,84.981,0.4903944]
[1771358701206,0.46879598,85.009,84.981,0.4903944]
[1771358701408,7.12674593,84.99,84.97,0.4903944]
[1771358701609,7.12674593,84.99,84.96,0.2]
[1771358701905,41.17259552,85.008,84.981,0.4903944]
[1771358701906,11.76359872,85.008,84.981,0.4903944]
[1771358702094,0.46879598,85.007,84.97,7.12674593]
[1771358702492,0.46879598,85.007,84.971,0.4903944]
[1771358702805,4.61729252,85.032,84.961,11.77010628]
[1771358702806,11.76041678,85.031,85.001,0.4903944]
[1771358703110,11.76041678,85.031,85.011,0.4903944]
[1771358703287,7.12674593,85.04,85.011,0.4903944]
[1771358703705,0.46879598,85.039,85.001,0.4903944]
[1771358703909,0.46879598,85.039,84.961,47.08042513]
[1771358703910,0.46879598,85.019,84.965,0.4903944]
[1771358704085,0.46879598,85.019,84.961,11.77010628]
[1771358704086,7.12674593,85.01,84.981,0.4903944]
[1771358705209,0.46879598,84.999,84.96,7.32674593]
[1771358705404,0.46879598,84.999,84.961,0.4903944]
[1771358705713,0.46879598,84.999,84.97,7.12674593]
[1771358705890,11.76124669,85.025,84.972,0.4903944]
[1771358706088,0.46879598,85.061,85.02,7.12674593]
[1771358706306,0.46879598,85.049,85.02,7.12674593]
[1771358707194,11.75806603,85.048,85.02,7.12674593]
[1771358707406,11.75806603,85.048,85.03,7.12674593]
[1771358707608,7.12674593,85.09,85.041,0.4903944]
[1771358707799,29.84908187,85.092,85.06,7.12674593]
[1771358708215,0.46879598,85.088,85.06,7.12674593]
[1771358708590,7.12674593,85.08,85.042,0.4903944]
[1771358708792,0.46879598,85.079,85.05,7.12674593]
[1771358709407,11.75391993,85.078,85.05,7.12674593]
[1771358709593,0.46879598,85.091,85.07,7.12674593]
[1771358709789,0.46879598,85.109,85.07,7.12674593]
[1771358710111,0.46879598,85.079,85.04,7.12674593]
[1771358710294,0.46879598,85.069,85.03,7.12674593]
[1771358710687,7.12674593,85.07,85.031,0.4903944]
[1771358710886,0.46879598,85.073,85.04,7.12674593]
[1771358711117,7.12674593,85.06,85.02,0.4903944]
[1771358711298,0.46879598,85.057,85.02,7.12674593]
[1771358712415,0.46879598,85.055,85.02,7.12674593]
[1771358713820,11.75723657,85.054,85.021,11.76180002]
[1771358713992,11.75723657,85.054,85.02,7.12674593]
[1771358714420,11.75723657,85.054,85.02,18.88860201]
[1771358714713,0.46158315,85.053,85.02,7.12674593]
[1771358716493,11.75751305,85.052,85.021,0.48673945]
[1771358717510,11.75516345,85.069,85.031,0.48673945]
[1771358717809,11.75516345,85.069,85.04,7.12674593]
[1771358717993,11.75516345,85.069,85.04,7.61348538]
[1771358718193,11.75516345,85.069,85.041,0.48673945]
[1771358719307,11.75516345,85.069,85.04,7.12674593]
[1771358719308,11.75350548,85.081,85.051,0.48673945]
[1771358719611,11.75350548,85.081,85.06,7.12674593]
[1771358720017,0.46158315,85.099,85.07,7.12674593]
[1771358720223,0.46158315,85.099,85.042,11.7588956]
[1771358720224,11.7510194,85.099,85.08,7.12674593]
[1771358720717,11.7510194,85.099,85.071,0.48673945]
[1771358722216,11.7510194,85.099,85.02,7.12674593]
[1771358722217,0.46158315,85.079,85.02,7.12674593]
[1771358722419,0.46158315,85.059,85.02,7.12674593]
[1771358723627,0.46158315,85.057,85.021,11.76180002]
[1771358724008,0.46158315,85.057,85.02,7.12674593]
[1771358726219,0.46158315,85.055,85.02,7.12674593]
[1771358727306,0.46158315,85.049,85.02,7.12674593]
[1771358728426,11.75806603,85.048,85.02,7.12674593]
[1771358728602,11.75806603,85.048,85.02,7.61348538]
[1771358730006,41.61481426,85.048,85.02,7.61348538]
[1771358730397,11.75682189,85.057,85.03,7.12674593]
[1771358731112,11.75682189,85.057,85.021,0.48673945]
[1771358731113,0.46158315,85.056,85.021,0.48673945]
[1771358734111,11.75709834,85.055,85.021,0.48673945]
[1771358734315,0.46158315,85.054,85.021,0.48673945]
[1771358736515,11.75737481,85.053,85.021,0.48673945]
[1771358736715,0.46158315,85.049,85.02,7.12674593]
[1771358737523,0.46158315,85.049,85.03,7.12674593]
[1771358737724,11.75682056,85.058,85.04,7.12674593]
[1771358738435,11.75682056,85.058,85.036,0.48673945]
[1771358738632,0.46158315,85.068,85.036,0.48673945]
[1771358739118,0.46158315,85.049,85.01,7.12674593]
[1771358739312,0.46158315,85.039,85.01,7.12674593]
[1771358741024,0.46158315,85.037,85.001,16.86]
[1771358741235,0.46158315,85.037,85.001,11.76449099]
[1771358741534,41.1580705,85.038,84.995,11.76536506]
[1771358741535,0.46158315,85.029,84.995,11.76536506]
[1771358742611,0.46158315,85.027,85.0,7.12674593]
[1771358743034,11.76083172,85.028,85.001,0.48673945]
[1771358743938,47.00587136,85.096,85.011,0.48673945]
[1771358743939,0.46158315,85.047,85.011,0.48673945]
[1771358745137,0.49694345,85.039,85.001,11.76456747]
[1771358746210,0.49694345,85.039,85.01,7.12674593]
[1771358747047,0.49694345,85.037,85.01,7.12674593]
[1771358747233,0.49694345,85.037,85.01,18.89002498]
[1771358748937,0.49694345,85.029,84.99,7.65397635]
[1771358749233,0.49694345,85.029,84.94,47.09159487]
[1771358749234,0.49694345,85.009,84.971,0.52723042]
[1771358749827,16.66,85.02,84.965,11.76954169]
[1771358749828,0.49694345,84.999,84.965,11.76954169]
[1771358750233,0.49694345,84.997,84.965,11.76954169]
[1771358751120,0.49694345,84.997,84.96,0.2]
[1771358751430,0.49694345,84.997,84.96,7.32674593]
[1771358751933,0.49694345,84.997,84.96,7.33403319]
[1771358752236,0.49694345,84.995,84.961,11.77010628]
[1771358752917,0.49694345,84.995,84.962,0.53216621]
[1771358753139,11.76476557,85.0,84.98,7.13403319]
[1771358753545,0.54830862,85.019,84.98,7.13403319]
[1771358753733,0.54830862,85.018,84.98,7.13403319]
[1771358754245,0.54830862,85.016,84.98,7.13403319]
[1771358754635,0.54830862,85.009,84.97,7.13403319]
[1771358754948,0.54830862,85.009,84.981,0.53216621]
[1771358755136,0.54830862,84.999,84.96,7.33403319]
[1771358755446,0.54830862,84.989,84.96,0.2]
[1771358756244,41.18228455,84.988,84.96,0.2]
[1771358756549,0.54830862,84.987,84.96,0.2]
[1771358756843,0.54830862,84.979,84.96,0.2]
[1771358757528,11.76636701,84.988,84.961,0.53216621]
[1771358758035,0.54830862,84.987,84.96,7.33403319]
[1771358758338,0.54830862,84.985,84.96,0.2]
[1771358759323,0.54830862,84.969,84.933,0.53216621]
[1771358759747,0.54830862,84.959,84.924,17.39216621]
[1771358760039,0.54830862,84.979,84.941,0.53216621]
[1771358760842,0.54830862,84.977,84.95,7.13403319]
[1771358761027,11.76775165,84.978,84.951,0.53216621]
[1771358761838,12.31356816,84.996,84.961,0.53216621]
[1771358762022,12.31356816,84.996,84.97,7.13403319]
[1771358762222,0.54830862,84.995,84.97,7.13403319]
[1771358762421,11.76318358,85.011,84.99,7.13403319]
[1771358762630,0.54830862,85.02,84.991,0.53216621]
[1771358763228,7.13403319,85.01,84.978,0.53216621]
[1771358763542,0.54830862,85.009,84.98,7.13403319]
[1771358763842,0.54830862,85.009,84.981,0.53216621]
[1771358764426,0.54830862,85.009,84.856,26.35349226]
[1771358764427,0.54830862,84.999,84.962,16.86]
[1771358764642,0.54830862,84.999,84.97,7.13403319]
[1771358765344,0.54830862,84.997,84.97,7.13403319]
[1771358766455,0.54830862,84.989,84.938,11.77323764]
[1771358766628,0.54830862,84.989,84.95,7.13403319]
[1771358767730,0.54830862,84.987,84.95,7.13403319]
[1771358768249,0.54830862,84.969,84.939,6.8]
[1771358768558,0.54830862,84.969,84.919,29.43949688]
[1771358768559,0.54830862,84.959,84.92,7.13403319]
[1771358768857,7.68234181,84.95,84.92,7.13403319]
[1771358769059,0.54830862,84.95,84.92,7.13403319]
[1771358769570,11.77176894,84.949,84.92,7.13403319]
[1771358769861,11.77122082,84.953,84.93,7.13403319]
[1771358770234,11.77122082,84.953,84.921,0.53216621]
[1771358770562,11.77122082,84.953,84.93,7.13403319]
[1771358771753,11.77038336,84.959,84.931,0.53216621]
[1771358772133,11.7689981,84.969,84.95,7.13403319]
[1771358772337,11.7689981,84.969,84.941,0.53216621]
[1771358772640,0.54830862,84.968,84.931,0.53216621]
[1771358773665,7.13403319,84.97,84.92,7.6661994]
[1771358773666,0.54830862,84.959,84.92,7.6661994]
[1771358773956,41.74077157,84.967,84.94,7.13403319]
[1771358774574,11.76927513,84.967,84.941,0.52282794]
[1771358774736,11.76927513,84.967,84.95,7.13403319]
[1771358775245,11.76802861,84.976,84.95,7.13403319]
[1771358775449,11.76802861,84.976,84.96,7.65686113]
[1771358775656,0.5651362,85.006,84.97,7.13403319]
[1771358776740,0.5651362,85.006,84.96,11.77016754]
[1771358776741,41.16872117,85.016,84.99,7.13403319]
[1771358777050,0.5651362,85.015,84.99,7.13403319]
[1771358777553,11.76138502,85.024,84.991,0.52282794]
[1771358777739,0.5651362,85.023,84.991,0.52282794]
[1771358778133,0.5651362,85.023,84.99,7.13403319]
[1771358778440,0.5651362,85.019,84.982,0.52282794]
[1771358778637,41.16484757,85.024,84.991,0.52282794]
[1771358779129,41.16484757,85.024,85.0,7.13403319]
[1771358779333,11.76138502,85.024,85.0,7.13403319]
[1771358780661,12.32601709,85.028,85.01,7.13403319]
[1771358781261,12.32601709,85.028,85.0,7.13403319]
[1771358782063,11.76088089,85.028,85.01,7.13403319]
[1771358782964,0.5651362,85.036,85.01,7.13403319]
[1771358783966,11.75917215,85.04,85.0,0.52282794]
[1771358784144,11.75917215,85.04,85.011,0.52282794]
[1771358784872,11.75917215,85.04,85.02,7.13403319]
[1771358785365,0.5651362,85.051,85.02,7.13403319]
[1771358785564,11.75751305,85.052,85.03,7.13403319]
[1771358785866,11.75693575,85.057,85.04,7.13403319]
[1771358786258,11.75693575,85.057,85.031,0.52282794]
[1771358787661,0.5651362,85.057,85.031,0.52282794]
[1771358787863,0.5651362,85.039,85.001,0.52282794]
[1771358788070,0.5651362,85.049,85.011,0.52282794]
[1771358788253,0.5651362,85.049,85.02,7.13403319]
[1771358788449,0.5651362,85.049,85.021,0.52282794]
[1771358788659,0.5651362,85.059,85.031,0.52282794]
[1771358788870,11.75516345,85.069,85.05,7.13403319]
[1771358789169,29.38549149,85.076,85.05,7.13403319]
[1771358789170,11.75465406,85.073,85.05,7.13403319]
[1771358790146,0.5651362,85.072,85.022,0.52282794]
[1771358790466,0.5651362,85.069,85.031,0.52282794]
[1771358791252,11.75465406,85.073,85.041,0.52282794]
[1771358791457,11.75465406,85.073,85.05,7.13403319]
[1771358791660,11.75465406,85.073,85.041,0.52282794]
[1771358791661,0.5651362,85.072,85.041,0.52282794]
[1771358791866,0.5651362,85.069,85.041,0.52282794]
[1771358792093,11.75530164,85.068,85.041,0.52282794]
[1771358792269,11.75530164,85.068,85.041,12.28186154]
[1771358792468,11.75530164,85.068,85.041,0.52282794]
[1771358792772,0.5651362,85.067,85.04,7.13403319]
[1771358794561,0.5651362,85.078,85.042,0.52282794]
[1771358795573,0.5651362,85.078,85.025,16.74]
[1771358795574,0.5651362,85.049,85.01,7.13403319]
[1771358795775,7.13403319,85.04,85.011,0.52282794]
[1771358795954,0.5651362,85.039,85.003,0.52282794]
[1771358796157,135.16849043,85.079,85.0,7.13403319]
[1771358796158,0.5651362,85.029,85.0,7.13403319]
[1771358796470,11.76083172,85.028,85.0,7.65686113]
[1771358796670,11.76083172,85.028,85.001,0.52282794]
[1771358797469,0.5651362,85.027,84.992,0.52282794]
[1771358797670,0.5651362,85.027,85.0,7.13403319]
[1771358797872,11.76083172,85.028,85.001,0.52282794]
[1771358798256,11.76083172,85.028,85.01,7.13403319]
[1771358798452,41.16000658,85.034,85.01,7.13403319]
[1771358798652,0.5651362,85.033,85.0,7.13403319]
[1771358798981,0.5651362,85.049,84.992,0.52282794]
[1771358799281,0.5651362,85.039,85.0,7.13403319]
[1771358799456,16.82,85.048,84.987,16.76]
[1771358799457,0.5651362,85.029,84.99,7.13403319]
[1771358800265,0.5651362,85.029,84.987,16.76]
[1771358800461,0.5651362,85.029,84.808,32.7011992]
[1771358800462,0.5651362,85.007,84.974,0.52282794]
[1771358800667,11.76359872,85.008,84.981,0.52282794]
[1771358800868,11.76359872,85.008,84.99,7.13403319]
[1771358801377,47.03293677,85.047,85.001,0.52282794]
[1771358801378,11.76138502,85.024,85.001,0.52282794]
[1771358801569,11.76138502,85.024,85.01,7.13403319]
[1771358801763,11.76000188,85.034,85.01,7.13403319]
[1771358801970,11.76000188,85.034,85.02,7.13403319]
[1771358802266,11.76000188,85.034,85.01,7.65686113]
[1771358804283,11.75875733,85.043,85.011,0.52282794]
[1771358804591,11.75875733,85.043,85.012,0.56447634]
[1771358805859,0.55634677,85.042,85.012,0.56447634]
[1771358806491,7.13403319,85.05,84.98,7.13403319]
[1771358806492,0.55634677,85.019,84.98,7.13403319]
[1771358807266,0.55634677,84.999,84.961,0.56447634]
[1771358807689,0.55634677,84.999,84.97,7.13403319]
[1771358808478,12.32132947,84.998,84.97,7.13403319]
[1771358808984,11.7649827,84.998,84.97,7.13403319]
[1771358809191,0.55634677,84.997,84.97,7.13403319]
[1771358811290,11.76525954,84.996,84.97,7.13403319]
[1771358811692,11.76525954,84.996,84.97,7.69850953]
[1771358811991,11.76525954,84.996,84.97,7.69638563]
[1771358813667,0.56720519,84.995,84.96,7.13190929]
[1771358813981,0.56720519,84.989,84.96,7.13190929]
[1771358814183,0.56720519,84.989,84.96,7.68947092]
[1771358814387,0.56720519,84.989,84.961,0.55756163]
[1771358816100,11.76636701,84.988,84.961,0.55756163]